bitfinex-derivatives/quotes_BTCF0:USTF0_20251213
["timestamp","ask_amount","ask_price","bid_price","bid_amount"]
[1765660462884,0.06999,90076.0,90060.0,0.46343]
[1765660462885,0.05686,90061.0,90060.0,0.46343]
[1765660463796,0.1473759,90061.0,90060.0,0.46343]
[1765660463993,0.1473759,90061.0,90060.0,0.46643]
[1765660464194,0.1473759,90061.0,90060.0,0.46943]
[1765660465286,0.1584774,90061.0,90060.0,0.46943]
[1765660465495,0.0679615,90061.0,90060.0,0.46943]
[1765660466893,0.0734883,90061.0,90060.0,0.4406]
[1765660469990,0.16441269,90061.0,90060.0,0.4406]
[1765660470389,0.16441269,90061.0,90060.0,0.0798]
[1765660472797,0.0055268,90061.0,90060.0,0.0798]
[1765660473000,0.1010268,90065.0,90064.0,0.0746]
[1765660473599,0.1066133,90065.0,90064.0,0.0746]
[1765660473998,0.0955122,90065.0,90064.0,0.4374]
[1765660474199,0.694,90067.0,90066.0,0.05712]
[1765660474400,0.0111008,90067.0,90066.0,0.05712]
[1765660474799,0.01664167,90067.0,90066.0,0.05712]
[1765660475303,0.01664167,90067.0,90066.0,0.05912]
[1765660475803,0.01664167,90067.0,90066.0,0.06112]
[1765660476003,0.10706274,90067.0,90066.0,0.06112]
[1765660476200,0.07959714,90073.0,90072.0,0.05712]
[1765660477406,0.07959714,90073.0,90072.0,0.05912]
[1765660478207,0.0110999,90074.0,90073.0,0.05712]
[1765660479506,0.09934754,90074.0,90073.0,0.05812]
[1765660479702,0.09934754,90074.0,90073.0,0.05912]
[1765660481102,0.12745754,90074.0,90073.0,0.05912]
[1765660481308,0.15540754,90074.0,90073.0,0.05912]
[1765660486007,0.12745754,90074.0,90073.0,0.05912]
[1765660486208,0.15540754,90074.0,90073.0,0.05912]
[1765660501634,0.14430764,90074.0,90073.0,0.05912]
[1765660501936,0.10779841,90074.0,90073.0,0.05912]
[1765660505644,0.13691841,90074.0,90073.0,0.05912]
[1765660509251,0.13691841,90074.0,90073.0,0.002]
[1765660509452,0.13691841,90074.0,90073.0,0.03068]
[1765660509746,0.13691841,90074.0,90073.0,0.05935]
[1765660510147,0.05723,90074.0,90073.0,0.05935]
[1765660511047,0.05723,90074.0,90073.0,0.002]
[1765660511438,0.05723,90074.0,90073.0,0.03068]
[1765660511937,0.05723,90074.0,90073.0,0.05935]
[1765660517053,0.694,90075.0,90074.0,0.0684499]
[1765660517248,0.07968415,90076.0,90075.0,0.05735]
[1765660517550,0.07968415,90077.0,90076.0,0.0853397]
[1765660517752,0.08516337,90077.0,90076.0,0.0853397]
[1765660518150,0.07968415,90077.0,90076.0,0.0853397]
[1765660518351,0.07985061,90078.0,90077.0,0.05735]
[1765660518746,0.10904061,90078.0,90077.0,0.05735]
[1765660519355,0.13816061,90078.0,90077.0,0.05735]
[1765660519747,0.05847646,90078.0,90077.0,0.05735]
[1765660519943,0.13814215,90078.0,90077.0,0.05735]
[1765660520154,0.05847646,90078.0,90077.0,0.05735]
[1765660530454,0.13814215,90078.0,90077.0,0.05735]
[1765660531266,0.05608,90074.0,90073.0,0.06973]
[1765660532371,0.05608,90074.0,90073.0,0.07073]
[1765660532667,0.05608,90074.0,90073.0,0.07173]
[1765660558705,0.05608,90074.0,90073.0,0.06063]
[1765660573122,0.05608,90074.0,90073.0,0.10464509]
[1765660573323,0.05608,90074.0,90073.0,0.06063]
[1765660581027,0.05608,90074.0,90073.0,0.03112]
[1765660581216,0.05608,90074.0,90073.0,0.06026]
[1765660588037,0.07973447,90076.0,90075.0,0.07324]
[1765660588328,0.02792,90077.0,90076.0,0.0680097]
[1765660588536,0.13753447,90077.0,90076.0,0.4288097]
[1765660589434,0.13753447,90077.0,90076.0,0.4298097]
[1765660589929,0.13753447,90077.0,90076.0,0.4308097]
[1765660591736,0.07973447,90077.0,90076.0,0.4308097]
[1765660593449,0.10765447,90077.0,90076.0,0.4308097]
[1765660594642,0.13753447,90077.0,90076.0,0.4308097]
[1765660594844,0.10765447,90077.0,90076.0,0.4308097]
[1765660597046,0.07973447,90077.0,90076.0,0.4308097]
[1765660597345,0.07990093,90078.0,90077.0,0.05691]
[1765660598453,0.10782093,90078.0,90077.0,0.05691]
[1765660599239,0.07990093,90078.0,90077.0,0.05691]
[1765660599649,0.72144,90087.0,90086.0,0.05691]
[1765660599838,0.7568269,90087.0,90086.0,0.05691]
[1765660600039,0.7568269,90087.0,90086.0,0.4288084]
[1765660600747,0.7578269,90087.0,90086.0,0.4288084]
[1765660602348,0.75232,90087.0,90086.0,0.4288084]
[1765660602548,0.75332,90087.0,90086.0,0.4288084]
[1765660603942,0.02992,90087.0,90086.0,0.4288084]
[1765660604147,0.002,90087.0,90086.0,0.4288084]
[1765660604650,0.02992,90087.0,90086.0,0.4288084]
[1765660607058,0.02992,90087.0,90086.0,0.41771]
[1765660608053,0.002,90087.0,90086.0,0.4288084]
[1765660608358,0.02808655,90096.0,90095.0,0.05691]
[1765660608558,0.06341854,90096.0,90095.0,0.05691]
[1765660609257,0.05796655,90096.0,90095.0,0.05691]
[1765660609658,0.05996655,90096.0,90095.0,0.05691]
[1765660610258,0.06196655,90096.0,90095.0,0.05691]
[1765660611359,0.12162609,90096.0,90095.0,0.05691]
[1765660613357,0.06196655,90096.0,90095.0,0.05691]
[1765660616660,0.12162609,90096.0,90095.0,0.05691]
[1765660618459,0.06196655,90096.0,90095.0,0.05691]
[1765660619363,0.12162609,90096.0,90095.0,0.05691]
[1765660620260,0.06196655,90096.0,90095.0,0.05691]
[1765660624970,0.05629,90091.0,90090.0,0.02722]
[1765660625165,0.05629,90091.0,90090.0,0.05682]
[1765660625570,0.11594954,90091.0,90090.0,0.05682]
[1765660625757,0.11594954,90091.0,90081.0,0.01696]
[1765660625758,0.05629,90082.0,90081.0,0.05682]
[1765660626164,0.11597134,90082.0,90081.0,0.02722]
[1765660626357,0.05629,90078.0,90077.0,0.05698655]
[1765660627268,0.11597651,90078.0,90077.0,0.05698655]
[1765660627978,0.05629,90078.0,90077.0,0.05698655]
[1765660628179,0.05629,90078.0,90077.0,0.00016655]
[1765660628375,0.05629,90078.0,90077.0,0.00116655]
[1765660628768,0.05629,90078.0,90077.0,0.00216655]
[1765660629174,0.13584258,90078.0,90077.0,0.00216655]
[1765660629478,0.05629,90078.0,90077.0,0.00216655]
[1765660630073,0.1358261,90078.0,90077.0,0.00216655]
[1765660630273,0.0673894,90078.0,90077.0,0.00216655]
[1765660633682,0.4281894,90078.0,90077.0,0.00216655]
[1765660637384,0.4410994,90078.0,90077.0,0.00216655]
[1765660641788,0.0673912,90064.0,90063.0,0.07378]
[1765660642398,0.12695142,90064.0,90063.0,0.07378]
[1765660642692,0.0673912,90064.0,90063.0,0.07378]
[1765660642998,0.12694575,90064.0,90063.0,0.07378]
[1765660643297,0.12694575,90064.0,90063.0,0.07878]
[1765660643998,0.0673912,90064.0,90063.0,0.07878]
[1765660644199,0.0673912,90064.0,90063.0,0.06182]
[1765660644399,0.0673912,90064.0,90063.0,0.005]
[1765660645001,0.0673912,90064.0,90063.0,0.03334]
[1765660645498,0.15738017,90064.0,90063.0,0.03334]
[1765660645895,0.00557158,90064.0,90063.0,0.07919]
[1765660646102,0.0111008,90067.0,90066.0,0.07592]
[1765660647191,0.0111008,90067.0,90066.0,0.07692]
[1765660647396,0.0111008,90067.0,90066.0,0.07792]
[1765660647700,0.00551589,90068.0,90067.0,0.0690208]
[1765660647896,0.1296231,90071.0,90070.0,0.05792]
[1765660648301,0.0700704,90071.0,90070.0,0.05792]
[1765660648601,0.07558883,90071.0,90070.0,0.05792]
[1765660649297,0.07558883,90071.0,90070.0,0.05892]
[1765660650006,0.07558883,90071.0,90070.0,0.05992]
[1765660652306,0.13519349,90071.0,90070.0,0.05992]
[1765660653205,0.07558883,90071.0,90070.0,0.05992]
[1765660661012,0.07558883,90071.0,90070.0,0.002]
[1765660661013,0.15512493,90071.0,90070.0,0.002]
[1765660661213,0.07558883,90071.0,90070.0,0.002]
[1765660673722,0.43638883,90071.0,90070.0,0.002]
[1765660694743,0.07558883,90071.0,90070.0,0.002]
[1765660694941,0.43638883,90071.0,90070.0,0.002]
[1765660700140,0.53608178,90071.0,90070.0,0.002]
[1765660702038,0.17528178,90071.0,90070.0,0.002]
[1765660702254,0.53608178,90071.0,90070.0,0.002]
[1765660702539,0.17528178,90071.0,90070.0,0.002]
[1765660702849,0.53608178,90071.0,90070.0,0.002]
[1765660707750,0.43638883,90071.0,90070.0,0.002]
[1765660710540,0.48977377,90071.0,90070.0,0.002]
[1765660713354,0.12897377,90071.0,90070.0,0.002]
[1765660713852,0.85057377,90071.0,90070.0,0.002]
[1765660714946,0.79718883,90071.0,90070.0,0.002]
[1765660715355,0.07558883,90071.0,90070.0,0.002]
[1765660715654,0.79718883,90071.0,90070.0,0.002]
[1765660716155,0.85058896,90071.0,90070.0,0.002]
[1765660717356,0.12898896,90071.0,90070.0,0.002]
[1765660717558,0.85058896,90071.0,90070.0,0.002]
[1765660719359,0.79718883,90071.0,90070.0,0.002]
[1765660722560,0.07558883,90071.0,90070.0,0.002]
[1765660722861,0.79718883,90071.0,90070.0,0.002]
[1765660725369,0.79718883,90071.0,90070.0,0.05817]
[1765660725664,0.79718883,90071.0,90070.0,0.0753]
[1765660728667,0.07558883,90071.0,90070.0,0.0753]
[1765660728867,0.43638883,90071.0,90070.0,0.0753]
[1765660730559,1.13002883,90071.0,90070.0,0.0753]
[1765660730759,1.10021883,90071.0,90070.0,0.0753]
[1765660734371,0.73941883,90071.0,90070.0,0.0753]
[1765660734575,0.76641883,90071.0,90070.0,0.0753]
[1765660741479,0.76641883,90071.0,90070.0,0.02993]
[1765660742278,0.76641883,90071.0,90070.0,0.002]
[1765660744083,0.76641883,90071.0,90070.0,0.05757]
[1765660746783,1.12721883,90071.0,90070.0,0.05757]
[1765660751393,1.12721883,90071.0,90070.0,0.002]
[1765660752787,0.76641883,90071.0,90070.0,0.002]
[1765660752993,1.12721883,90071.0,90070.0,0.002]
[1765660754393,1.12721883,90071.0,90070.0,0.03033]
[1765660754594,1.12721883,90071.0,90070.0,0.05757]
[1765660755700,1.12721883,90071.0,90070.0,0.002]
[1765660756403,1.12721883,90071.0,90070.0,0.03033]
[1765660756604,1.12721883,90071.0,90070.0,0.05757]
[1765660762507,0.76641883,90071.0,90070.0,0.05757]
[1765660767711,0.07277883,90071.0,90070.0,0.05757]
[1765660767910,0.76249883,90071.0,90070.0,0.05757]
[1765660769007,0.76249883,90071.0,90070.0,0.002]
[1765660770111,1.12329883,90071.0,90070.0,0.002]
[1765660783420,0.76249883,90071.0,90070.0,0.002]
[1765660783721,1.12329883,90071.0,90070.0,0.002]
[1765660790421,0.76249883,90071.0,90070.0,0.002]
[1765660790627,1.12329883,90071.0,90070.0,0.002]
[1765660792428,0.76249883,90071.0,90070.0,0.002]
[1765660792626,1.12329883,90071.0,90070.0,0.002]
[1765660800231,0.43357883,90071.0,90070.0,0.002]
[1765660800434,1.08477883,90071.0,90070.0,0.002]
[1765660804436,0.43357883,90071.0,90070.0,0.002]
[1765660804634,1.12717883,90071.0,90070.0,0.002]
[1765660806331,0.76637883,90071.0,90070.0,0.002]
[1765660806637,1.12717883,90071.0,90070.0,0.002]
[1765660807236,0.0699519,90058.0,90057.0,0.05662]
[1765660807436,0.7635119,90058.0,90057.0,0.03318232]
[1765660807840,0.75241,90058.0,90057.0,0.04989232]
[1765660808145,0.53593041,90071.0,90070.0,0.05662]
[1765660808332,1.22949041,90071.0,90070.0,0.05662]
[1765660808937,1.12982873,90071.0,90070.0,0.05662]
[1765660809331,1.12982873,90071.0,90070.0,0.05762]
[1765660809639,0.43626873,90071.0,90070.0,0.05762]
[1765660809839,1.08062873,90071.0,90070.0,0.05762]
[1765660810338,1.08062873,90071.0,90070.0,0.05862]
[1765660819544,0.71982873,90071.0,90070.0,0.05862]
[1765660823748,0.76898873,90071.0,90070.0,0.05862]
[1765660832555,0.07546873,90071.0,90070.0,0.05862]
[1765660832757,0.74506873,90071.0,90070.0,0.05862]
[1765660839465,0.70506843,90071.0,90070.0,0.05862]
[1765660839868,0.73435843,90071.0,90070.0,0.05862]
[1765660846075,0.06475843,90071.0,90070.0,0.05862]
[1765660862890,0.06475843,90071.0,90070.0,0.002]
[1765660863390,0.06475843,90071.0,90070.0,0.03017]
[1765660863579,0.06475843,90071.0,90070.0,0.06005]
[1765660864390,0.06475843,90071.0,90070.0,0.002]
[1765660864991,0.06475843,90071.0,90070.0,0.03017]
[1765660866282,0.06475843,90071.0,90070.0,0.06005]
[1765660867286,0.06475843,90071.0,90070.0,0.002]
[1765660867787,0.06475843,90071.0,90070.0,0.03017]
[1765660868201,0.06475843,90071.0,90070.0,0.06005]
[1765660882400,0.06475843,90071.0,90070.0,0.002]
[1765660886815,0.06475843,90071.0,90070.0,0.03135]
[1765660888416,0.06475843,90071.0,90070.0,0.06024]
[1765660904536,0.06475843,90071.0,90070.0,0.002]
[1765660905035,0.06475843,90071.0,90070.0,0.03021]
[1765660905333,0.06475843,90071.0,90070.0,0.0591]
[1765660930474,0.03546843,90071.0,90070.0,0.07125]
[1765660930871,0.06487843,90071.0,90070.0,0.07125]
[1765660936477,0.06487843,90071.0,90070.0,0.0591]
[1765660937882,0.06487843,90071.0,90070.0,0.0581]
[1765660938683,0.06487843,90071.0,90070.0,0.0571]
[1765660941188,0.06487843,90071.0,90070.0,0.07469]
[1765660942382,0.00551843,90071.0,90070.0,0.07469]
[1765660942689,0.02828655,90073.0,90072.0,0.05694]
[1765660943180,0.03378487,90073.0,90072.0,0.05694]
[1765660943990,0.03478487,90073.0,90072.0,0.05694]
[1765660944176,0.06366487,90073.0,90072.0,0.05694]
[1765660946390,0.06366487,90073.0,90072.0,0.07364]
[1765660951193,0.03478487,90073.0,90072.0,0.07364]
[1765660951590,0.06410487,90073.0,90072.0,0.07364]
[1765660955697,0.06410487,90073.0,90072.0,0.05694]
[1765660955898,0.07475,90072.0,90071.0,0.0700103]
[1765660957802,0.05826,90072.0,90071.0,0.0700103]
[1765660992253,0.05826,90072.0,90071.0,0.05891]
[1765661032176,0.06674,90072.0,90071.0,0.05891]
[1765661032776,0.05826,90072.0,90071.0,0.05891]
[1765661041479,0.0111012,90065.0,90064.0,0.05526]
[1765661041670,0.0677423,90055.0,90054.0,0.05542655]
[1765661041874,0.0677423,90055.0,90054.0,0.07240655]
[1765661042390,0.1474461,90055.0,90054.0,0.07240655]
[1765661043273,0.0677423,90055.0,90054.0,0.07440655]
[1765661043474,0.0677423,90055.0,90054.0,0.07640655]
[1765661045984,0.07329778,90055.0,90054.0,0.07640655]
[1765661048385,0.06219548,90055.0,90054.0,0.07640655]
[1765661085110,0.00555548,90055.0,90054.0,0.07640655]
[1765661085314,0.1095338,90057.0,90056.0,0.07392]
[1765661085497,0.1388038,90057.0,90056.0,0.07392]
[1765661085703,0.14441021,90057.0,90056.0,0.07392]
[1765661086414,0.14441021,90057.0,90056.0,0.07792]
[1765661086713,0.15551221,90057.0,90056.0,0.07792]
[1765661087217,0.07580841,90057.0,90056.0,0.07792]
[1765661087696,0.15553432,90057.0,90056.0,0.07792]
[1765661089201,0.14443232,90057.0,90056.0,0.07792]
[1765661090315,0.06470641,90057.0,90056.0,0.07792]
[1765661094318,0.06470641,90057.0,90056.0,0.06107]
[1765661095111,0.06470641,90057.0,90056.0,0.07757]
[1765661097115,0.06470641,90057.0,90056.0,0.004]
[1765661097818,0.06470641,90057.0,90056.0,0.03317]
[1765661098017,0.06470641,90057.0,90056.0,0.06201]
[1765661098716,0.06470641,90057.0,90056.0,0.03317]
[1765661099514,0.06470641,90057.0,90056.0,0.06201]
[1765661101207,0.06470641,90057.0,90056.0,0.004]
[1765661102421,0.06470641,90057.0,90056.0,0.002]
[1765661102619,0.06470641,90057.0,90056.0,0.004]
[1765661102917,0.06470641,90057.0,90056.0,0.002]
[1765661103118,0.06470641,90057.0,90056.0,0.004]
[1765661109818,0.11664725,90057.0,90056.0,0.004]
[1765661110013,0.05512,90055.0,90054.0,0.00016655]
[1765661110213,0.74852,90055.0,90054.0,0.00016655]
[1765661111220,0.83655538,90055.0,90054.0,0.00116655]
[1765661112025,0.83655538,90055.0,90054.0,0.00216655]
[1765661112923,1.19735538,90055.0,90054.0,0.00216655]
[1765661114421,0.05512,90051.0,90050.0,0.00012595]
[1765661114627,0.13469981,90051.0,90050.0,0.00012595]
[1765661115027,0.13469981,90051.0,90050.0,0.02929595]
[1765661116218,0.14580261,90051.0,90050.0,0.00012595]
[1765661117224,0.14580261,90051.0,90050.0,0.00112595]
[1765661117527,0.14580261,90051.0,90050.0,0.03029595]
[1765661117723,0.50660261,90051.0,90050.0,0.03029595]
[1765661118929,0.50660261,90051.0,90050.0,0.00112595]
[1765661119224,0.4270228,90051.0,90050.0,0.00112595]
[1765661120329,0.4270228,90051.0,89998.0,0.09982973]
[1765661120330,0.05512,90036.0,90035.0,0.0708147]
[1765661121323,0.05524491,90036.0,90035.0,0.0708147]
[1765661122318,0.00012491,90036.0,90035.0,0.0708147]
[1765661122724,0.00012491,90036.0,90035.0,0.0728147]
[1765661123730,0.03543266,90036.0,90035.0,0.0728147]
[1765661124930,0.06378266,90036.0,90035.0,0.06171]
[1765661127229,0.03543266,90036.0,90035.0,0.06171]
[1765661127435,0.47607266,90036.0,90035.0,0.06171]
[1765661127836,0.50595266,90036.0,90035.0,0.06171]
[1765661134644,0.44634266,90036.0,90035.0,0.06171]
[1765661134844,0.00570266,90036.0,90035.0,0.06171]
[1765661137039,0.0653534,90036.0,90035.0,0.06171]
[1765661137450,0.00570266,90036.0,90035.0,0.06171]
[1765661139258,0.00012491,90036.0,90035.0,0.06171]
[1765661139756,0.42045074,90043.0,90042.0,0.0679]
[1765661139959,0.3608,90043.0,90042.0,0.0679]
[1765661140160,0.36634678,90043.0,90042.0,0.0679]
[1765661140756,0.00554678,90043.0,90042.0,0.0679]
[1765661140957,0.00016655,90045.0,90044.0,0.05544]
[1765661152370,0.0598182,90045.0,90044.0,0.05544]
[1765661154872,0.0878782,90045.0,90044.0,0.05544]
[1765661156471,0.0598182,90045.0,90044.0,0.05544]
[1765661158069,0.0893382,90045.0,90044.0,0.05544]
[1765661158279,0.1188482,90045.0,90044.0,0.05544]
[1765661161178,0.05919655,90045.0,90044.0,0.05544]
[1765661161568,0.05919655,90045.0,90044.0,0.05486]
[1765661176690,0.05903,90044.0,90043.0,0.0111037]
[1765661177081,0.05903,90044.0,90043.0,0.0400837]
[1765661177592,0.05903,90044.0,90043.0,0.0678937]
[1765661180096,0.05903,90041.0,90040.0,0.05679]
[1765661180991,0.05903,90036.0,90035.0,0.0695947]
[1765661181298,0.11876962,90036.0,90035.0,0.0695947]
[1765661182186,0.05903,90036.0,90035.0,0.0705947]
[1765661183196,0.05903,90036.0,90035.0,0.0715947]
[1765661192000,0.05938,90036.0,90035.0,0.0715947]
[1765661207311,0.05938,90036.0,90035.0,0.0736747]
[1765661209296,0.05938,90036.0,90035.0,0.06257]
[1765661209496,0.06595,90036.0,90035.0,0.0037]
[1765661210497,0.06595,90036.0,90035.0,0.03081]
[1765661211313,0.06595,90036.0,90035.0,0.0037]
[1765661222227,0.06595,90036.0,90035.0,0.05899]
[1765661224825,0.05938,90036.0,90035.0,0.05899]
[1765661231021,0.02772,90022.0,90006.0,0.01668]
[1765661231218,0.02772,90022.0,90002.0,0.0663987]
[1765661231219,0.05772,90003.0,90002.0,0.0663987]
[1765661231420,0.05772,90003.0,90002.0,0.05529]
[1765661232926,0.05772,90003.0,90002.0,0.05829]
[1765661233322,0.05772,90003.0,90000.0,0.0005]
[1765661233323,0.05772,90001.0,90000.0,0.02794]
[1765661233518,0.05772,90001.0,90000.0,0.0005]
[1765661234429,0.05772,90001.0,90000.0,0.0035]
[1765661234622,0.05772,90001.0,90000.0,0.0055]
[1765661235330,0.07467,89985.0,89984.0,0.066401]
[1765661235633,0.1171716,90000.0,89999.0,0.0663992]
[1765661235926,0.1171716,90000.0,89999.0,0.02744]
[1765661235927,0.11717501,90000.0,89999.0,0.02744]
[1765661236119,0.05772,90000.0,89999.0,0.05529]
[1765661237130,0.05872,90000.0,89999.0,0.05529]
[1765661237324,0.05972,90000.0,89999.0,0.05529]
[1765661241031,0.002,90000.0,89999.0,0.05529]
[1765661246438,0.002,90000.0,89998.0,0.0111092]
[1765661246439,0.0111067,90020.0,90007.0,0.0677482]
[1765661246640,0.0111067,90020.0,90007.0,0.4285482]
[1765661246946,0.0575,90020.0,90019.0,0.05664]
[1765661247442,0.03355262,90020.0,90019.0,0.05664]
[1765661248039,0.06310262,90020.0,90019.0,0.05664]
[1765661248734,0.06810262,90020.0,90019.0,0.05664]
[1765661249133,0.07210262,90020.0,90019.0,0.05664]
[1765661249329,0.16178909,90020.0,90019.0,0.05664]
[1765661254329,0.22124751,90020.0,90019.0,0.05664]
[1765661255247,0.21524751,90020.0,90019.0,0.05664]
[1765661255447,0.21524751,90020.0,90019.0,0.41744]
[1765661255448,0.007,90020.0,90019.0,0.41744]
[1765661256332,0.003,90020.0,90019.0,0.41744]
[1765661256534,0.48848,90025.0,90024.0,0.07325]
[1765661257236,0.52193182,90025.0,90024.0,0.07325]
[1765661257438,0.55148182,90025.0,90024.0,0.07325]
[1765661258046,0.55348182,90025.0,90024.0,0.07325]
[1765661258547,0.55548182,90025.0,90024.0,0.07325]
[1765661258749,0.6423827,90025.0,90024.0,0.07325]
[1765661259550,0.1539027,90025.0,90024.0,0.07325]
[1765661274353,0.21336112,90025.0,90024.0,0.07325]
[1765661275358,0.1539027,90025.0,90024.0,0.07325]
[1765661280666,0.1243527,90025.0,90024.0,0.07325]
[1765661280867,0.09871856,90025.0,90024.0,0.07325]
[1765661281066,0.004,90025.0,90024.0,0.07325]
[1765661281659,0.09105141,90025.0,90024.0,0.07325]
[1765661282163,0.11794141,90025.0,90024.0,0.07325]
[1765661282362,0.06026,90025.0,90024.0,0.07325]
[1765661282570,0.05826,90025.0,90024.0,0.07325]
[1765661282770,0.06026,90025.0,90024.0,0.07325]
[1765661282973,0.05826,90025.0,90024.0,0.07325]
[1765661283161,0.05926,90025.0,90024.0,0.07325]
[1765661287472,0.11898307,90025.0,90024.0,0.07325]
[1765661288467,0.05926,90025.0,90024.0,0.43405]
[1765661288968,0.11898307,90025.0,90024.0,0.43405]
[1765661290474,0.05926,90025.0,90024.0,0.43405]
[1765661305677,0.05926,90025.0,90024.0,0.07325]
[1765661305887,0.05926,90025.0,90024.0,0.43405]
[1765661307678,0.05926,90025.0,90024.0,0.07325]
[1765661307883,0.05926,90025.0,90024.0,0.43405]
[1765661308090,0.05926,90025.0,90024.0,0.07325]
[1765661308284,0.05926,90025.0,90024.0,0.43405]
[1765661310390,0.05926,90025.0,90024.0,0.07325]
[1765661310692,0.05926,90025.0,90024.0,0.43405]
[1765661316596,0.003,90025.0,90024.0,0.43405]
[1765661317200,0.03161,90025.0,90024.0,0.43405]
[1765661318494,0.03161,90025.0,90024.0,0.07325]
[1765661318685,0.03161,90025.0,90024.0,0.43405]
[1765661319783,0.06147,90025.0,90024.0,0.43405]
[1765661321391,0.06147,90025.0,90024.0,0.07325]
[1765661321696,0.06147,90025.0,90024.0,0.43405]
[1765661330496,0.12123503,90025.0,90024.0,0.43405]
[1765661331898,0.09137503,90025.0,90024.0,0.43405]
[1765661332809,0.06276503,90025.0,90024.0,0.43405]
[1765661336102,0.09137503,90025.0,90024.0,0.43405]
[1765661337104,0.06276503,90025.0,90024.0,0.43405]
[1765661337308,0.09245503,90025.0,90024.0,0.43405]
[1765661342098,0.09245503,90025.0,90024.0,0.07325]
[1765661342301,0.09245503,90025.0,90024.0,0.43405]
[1765661342695,0.12225503,90025.0,90024.0,0.43405]
[1765661354709,0.09245503,90025.0,90024.0,0.43405]
[1765661354909,0.06276503,90025.0,90024.0,0.43405]
[1765661355212,0.12225503,90025.0,90024.0,0.43405]
[1765661368919,0.06276503,90025.0,90024.0,0.43405]
[1765661370029,0.09245503,90025.0,90024.0,0.43405]
[1765661370428,0.03269,90025.0,90024.0,0.43405]
[1765661372832,0.03269,90025.0,90024.0,0.47836567]
[1765661373836,0.003,90025.0,90024.0,0.43405]
[1765661374434,0.003,90025.0,90024.0,0.07325]
[1765661374640,0.003,90025.0,90024.0,0.43405]
[1765661375437,0.03269,90025.0,90024.0,0.43405]
[1765661379041,0.03269,90025.0,90024.0,0.07325]
[1765661379338,0.03269,90025.0,90024.0,0.43405]
[1765661382038,0.06034,90025.0,90024.0,0.43405]
[1765661384634,0.03269,90025.0,90024.0,0.43405]
[1765661386034,0.003,90025.0,90024.0,0.43405]
[1765661386232,0.03269,90025.0,90024.0,0.43405]
[1765661388732,0.03269,90025.0,90024.0,0.07325]
[1765661388938,0.06034,90025.0,90024.0,0.43405]
[1765661395546,0.12010787,90025.0,90024.0,0.43405]
[1765661395740,0.03269,90025.0,90024.0,0.43405]
[1765661401248,0.06204,90025.0,90024.0,0.43405]
[1765661404049,0.12180787,90025.0,90024.0,0.43405]
[1765661409855,0.06204,90025.0,90024.0,0.43405]
[1765661410055,0.06204,90025.0,90024.0,0.4451561]
[1765661412855,0.06204,90025.0,90024.0,0.43405]
[1765661415452,0.06204,90025.0,90024.0,0.4451561]
[1765661416158,0.06204,90025.0,90024.0,0.43405]
[1765661420460,0.12180472,90025.0,90024.0,0.43405]
[1765661421053,0.12180472,90025.0,90024.0,0.07325]
[1765661422659,0.12180472,90025.0,90024.0,0.0843561]
[1765661425452,0.06204,90025.0,90024.0,0.0843561]
[1765661425855,0.06204,90025.0,90024.0,0.07325]
[1765661462110,0.06204,90025.0,90024.0,0.02712]
[1765661462407,0.06204,90025.0,90024.0,0.05696]
[1765661473217,0.05926,90023.0,90022.0,0.3608]
[1765661473419,0.0703674,90013.0,90012.0,0.40592]
[1765661473722,0.0703674,90013.0,90012.0,0.43576]
[1765661474719,0.05926,90013.0,90012.0,0.43576]
[1765661475310,0.02993,90013.0,90012.0,0.43576]
[1765661476010,0.05926,90013.0,90012.0,0.43576]
[1765661476615,0.11892359,90013.0,90012.0,0.43576]
[1765661478223,0.05926,90013.0,90012.0,0.43576]
[1765661494240,0.05926,90013.0,90012.0,0.38823]
[1765661494737,0.05926,90013.0,90012.0,0.41746]
[1765661496224,0.11892359,90013.0,90012.0,0.41746]
[1765661497542,0.11892359,90013.0,90012.0,0.43439]
[1765661498145,0.11892359,90013.0,90012.0,0.07359]
[1765661499445,0.05926,90013.0,90012.0,0.07359]
[1765661501144,0.11246392,90013.0,90012.0,0.07359]
[1765661501447,0.05926,90013.0,90012.0,0.07359]
[1765661509857,0.05621,90011.0,90010.0,0.00016666]
[1765661510348,0.41701,90011.0,90010.0,0.00016666]
[1765661513242,0.41701,90011.0,90010.0,0.02869666]
[1765661513552,0.41701,90011.0,90010.0,0.05792666]
[1765661513553,0.44060884,90011.0,90010.0,0.05792666]
[1765661517143,0.44060884,90011.0,90010.0,0.02869666]
[1765661517449,0.44060884,90011.0,90010.0,0.00016666]
[1765661517954,0.44060884,90011.0,90010.0,0.02810666]
[1765661519152,0.44060884,90011.0,90010.0,0.00016666]
[1765661523558,0.0111097,89995.0,89994.0,0.02794]
[1765661523745,0.0551,89992.0,89991.0,0.02794]
[1765661523951,0.07869884,89992.0,89991.0,0.02794]
[1765661524554,0.15815779,89992.0,89991.0,0.02794]
[1765661525062,0.15815779,89992.0,89991.0,0.05588]
[1765661525262,0.07869884,89992.0,89991.0,0.05588]
[1765661525654,0.07869884,89992.0,89991.0,0.08542]
[1765661525855,0.07869884,89992.0,89991.0,0.07526]
[1765661526954,0.08432931,89992.0,89991.0,0.07526]
[1765661527151,0.08432931,89992.0,89988.0,0.01778]
[1765661527152,0.0551,89984.0,89983.0,0.0280537]
[1765661527352,0.07869884,89984.0,89983.0,0.0001137]
[1765661528067,0.07869884,89984.0,89983.0,0.0280537]
[1765661528268,0.07869884,89984.0,89983.0,0.0021137]
[1765661528753,0.07869884,89984.0,89983.0,0.0595937]
[1765661529268,0.13817388,89984.0,89983.0,0.0595937]
[1765661529668,0.13817388,89984.0,89983.0,0.0605937]
[1765661530558,0.07869884,89984.0,89983.0,0.0605937]
[1765661532171,0.02359884,89984.0,89983.0,0.0605937]
[1765661532468,0.72151,89986.0,89985.0,0.05748]
[1765661532671,0.74529659,89986.0,89985.0,0.05748]
[1765661532868,0.77276659,89986.0,89985.0,0.05748]
[1765661533563,0.77276659,89986.0,89985.0,0.05848]
[1765661533766,0.77276659,89986.0,89985.0,0.05948]
[1765661536471,0.77276659,89986.0,89985.0,0.002]
[1765661536772,0.0551,89984.0,89983.0,0.0280537]